[Event "Live Chess"]
[Site "Chess.com"]
[Date "2023.05.21"]
[Round "-"]
[White "Daniel_Gliddon_FA"]
[Black "Dhaydon19"]
[Result "0-1"]
[WhiteElo "1197"]
[BlackElo "2691"]
[TimeControl "300"]
[EndTime "7:25:23 PDT"]
[Termination "Dhaydon19 won by resignation"]

1. e4 {[%clk 0:04:57.2]} 1... b6 {[%clk 0:04:58.8]} 2. d4 {[%clk 0:04:55.8]}
2... Bb7 {[%clk 0:04:58]} 3. Nc3 {[%clk 0:04:50.9]} 3... e6 {[%clk 0:04:56.9]}
4. Bc4 {[%clk 0:04:47.3]} 4... Nf6 {[%clk 0:04:55.6]} 5. Nf3 {[%clk 0:04:44]}
5... Nxe4 {[%clk 0:04:54.4]} 6. d5 {[%clk 0:04:37.9]} 6... Nxc3 {[%clk
0:04:52.9]} 7. bxc3 {[%clk 0:04:32.2]} 7... Be7 {[%clk 0:04:51.9]} 8. Bf4 {[%clk
0:04:20]} 8... O-O {[%clk 0:04:48.7]} 9. O-O {[%clk 0:04:17.8]} 9... Na6 {[%clk
0:04:45.5]} 10. Qe2 {[%clk 0:04:09.2]} 10... Nc5 {[%clk 0:04:43.9]} 11. Rad1
{[%clk 0:03:57]} 11... Bf6 {[%clk 0:04:41.6]} 12. d6 {[%clk 0:03:49.4]} 12...
cxd6 {[%clk 0:04:38]} 13. Bxd6 {[%clk 0:03:47.8]} 13... Re8 {[%clk 0:04:37.7]}
14. Bxc5 {[%clk 0:03:46.2]} 14... bxc5 {[%clk 0:04:36.4]} 15. Ne5 {[%clk
0:03:35.5]} 15... d5 {[%clk 0:04:31.5]} 16. Bd3 {[%clk 0:03:29.1]} 16... Qc7
{[%clk 0:04:29.1]} 17. Qh5 {[%clk 0:03:24.5]} 17... g6 {[%clk 0:04:27.4]} 18.
Qf3 {[%clk 0:02:59.2]} 18... Bxe5 {[%clk 0:04:25.6]} 19. Rfe1 {[%clk 0:02:48.8]}
19... Bxh2+ {[%clk 0:04:21.1]} 20. Kh1 {[%clk 0:02:43.5]} 20... Be5 {[%clk
0:04:20.3]} 21. g3 {[%clk 0:02:35.8]} 21... c4 {[%clk 0:04:16.6]} 0-1

[Event "Live Chess"]
[Site "Chess.com"]
[Date "2023.05.21"]
[Round "-"]
[White "PaulyD81"]
[Black "KeithArkell"]
[Result "0-1"]
[WhiteElo "1190"]
[BlackElo "2477"]
[TimeControl "300"]
[EndTime "7:25:25 PDT"]
[Termination "KeithArkell won by checkmate"]

1. d4 {[%clk 0:04:57.2]} 1... e6 {[%clk 0:04:58.8]} 2. c4 {[%clk 0:04:55.7]}
2... Bb4+ {[%clk 0:04:57]} 3. Bd2 {[%clk 0:04:53.6]} 3... Bxd2+ {[%clk
0:04:55.4]} 4. Qxd2 {[%clk 0:04:49.1]} 4... Nf6 {[%clk 0:04:54.6]} 5. Nc3 {[%clk
0:04:42.1]} 5... d6 {[%clk 0:04:53.7]} 6. Nf3 {[%clk 0:04:40.9]} 6... Qe7 {[%clk
0:04:52.8]} 7. e3 {[%clk 0:04:39.9]} 7... e5 {[%clk 0:04:47.8]} 8. Be2 {[%clk
0:04:33.1]} 8... Bg4 {[%clk 0:04:44.1]} 9. O-O {[%clk 0:04:29.4]} 9... Nbd7
{[%clk 0:04:42.8]} 10. c5 {[%clk 0:04:11.8]} 10... O-O {[%clk 0:04:30]} 11. cxd6
{[%clk 0:04:05.3]} 11... cxd6 {[%clk 0:04:27.4]} 12. h3 {[%clk 0:03:59.1]} 12...
Bxf3 {[%clk 0:04:25]} 13. Bxf3 {[%clk 0:03:56.3]} 13... e4 {[%clk 0:04:23.8]}
14. Bg4 {[%clk 0:03:35.6]} 14... d5 {[%clk 0:04:19.3]} 15. Bxd7 {[%clk
0:03:09.5]} 15... Qxd7 {[%clk 0:04:17.1]} 16. Rac1 {[%clk 0:02:57.1]} 16... Rfc8
{[%clk 0:04:11.8]} 17. Rc2 {[%clk 0:02:50.8]} 17... h5 {[%clk 0:04:04.7]} 18. h4
{[%clk 0:02:29.7]} 18... Qg4 {[%clk 0:03:50.3]} 19. g3 {[%clk 0:02:23.1]} 19...
Qh3 {[%clk 0:03:48.3]} 20. a3 {[%clk 0:01:59]} 20... Ng4 {[%clk 0:03:46.4]} 21.
Nxd5 {[%clk 0:01:39]} 21... Qh2# {[%clk 0:03:43.5]} 0-1

[Event "Live Chess"]
[Site "Chess.com"]
[Date "2023.05.21"]
[Round "-"]
[White "onemoretime1975"]
[Black "robotking06"]
[Result "1-0"]
[WhiteElo "1841"]
[BlackElo "308"]
[TimeControl "300"]
[EndTime "7:25:37 PDT"]
[Termination "onemoretime1975 won by checkmate"]

1. e4 {[%clk 0:04:58.5]} 1... e5 {[%clk 0:04:58.6]} 2. Nf3 {[%clk 0:04:57.4]}
2... Nc6 {[%clk 0:04:56.7]} 3. Bc4 {[%clk 0:04:56.2]} 3... f5 {[%clk 0:04:48.8]}
4. d3 {[%clk 0:04:53.5]} 4... fxe4 {[%clk 0:04:47.6]} 5. dxe4 {[%clk 0:04:52]}
5... Bb4+ {[%clk 0:04:40.9]} 6. c3 {[%clk 0:04:50.2]} 6... Ba5 {[%clk
0:04:37.3]} 7. b4 {[%clk 0:04:47]} 7... Bb6 {[%clk 0:04:36.5]} 8. b5 {[%clk
0:04:42.8]} 8... Na5 {[%clk 0:04:29.4]} 9. Nxe5 {[%clk 0:04:34.4]} 9... Nxc4
{[%clk 0:04:16.9]} 10. Nxc4 {[%clk 0:04:32.1]} 10... d5 {[%clk 0:04:10]} 11.
Nxb6 {[%clk 0:04:29.6]} 11... cxb6 {[%clk 0:04:08.6]} 12. Qh5+ {[%clk
0:04:25.4]} 12... g6 {[%clk 0:04:06.3]} 13. Qe5+ {[%clk 0:04:19.1]} 13... Ne7
{[%clk 0:04:04.2]} 14. Qxh8+ {[%clk 0:04:17]} 14... Ng8 {[%clk 0:04:01.5]} 15.
Qxg8+ {[%clk 0:04:14.4]} 15... Kd7 {[%clk 0:03:59.4]} 16. Qxd5+ {[%clk
0:04:12.4]} 16... Ke7 {[%clk 0:03:57.8]} 17. Bg5+ {[%clk 0:04:10.1]} 17... Ke8
{[%clk 0:03:56.3]} 18. Qxd8+ {[%clk 0:04:07.2]} 18... Kf7 {[%clk 0:03:36.1]} 19.
Qf6+ {[%clk 0:04:01.3]} 19... Ke8 {[%clk 0:03:33.5]} 20. Qe7# {[%clk 0:04:00.1]}
1-0

[Event "Live Chess"]
[Site "Chess.com"]
[Date "2023.05.21"]
[Round "-"]
[White "BearFromUkraine"]
[Black "CheckThis4"]
[Result "0-1"]
[WhiteElo "1072"]
[BlackElo "2528"]
[TimeControl "300"]
[EndTime "7:25:43 PDT"]
[Termination "CheckThis4 won by resignation"]

1. e4 {[%clk 0:04:55.8]} 1... d5 {[%clk 0:04:58.4]} 2. e5 {[%clk 0:04:54.7]}
2... c5 {[%clk 0:04:57.1]} 3. d4 {[%clk 0:04:49.7]} 3... Nc6 {[%clk 0:04:55.7]}
4. Nf3 {[%clk 0:04:46.1]} 4... Bg4 {[%clk 0:04:53.1]} 5. Be3 {[%clk 0:04:43.3]}
5... Bxf3 {[%clk 0:04:50.9]} 6. Qxf3 {[%clk 0:04:40.8]} 6... cxd4 {[%clk
0:04:49.9]} 7. Bd2 {[%clk 0:04:27.7]} 7... e6 {[%clk 0:04:47.6]} 8. Bb5 {[%clk
0:04:24.3]} 8... Qb6 {[%clk 0:04:45.1]} 9. Bxc6+ {[%clk 0:04:21.7]} 9... bxc6
{[%clk 0:04:45]} 10. O-O {[%clk 0:04:20.6]} 10... Qxb2 {[%clk 0:04:40.6]} 11.
Nc3 {[%clk 0:04:16.8]} 0-1

[Event "Live Chess"]
[Site "Chess.com"]
[Date "2023.05.21"]
[Round "-"]
[White "JanMur7"]
[Black "Vitalii18a"]
[Result "1-0"]
[WhiteElo "1970"]
[BlackElo "1128"]
[TimeControl "300"]
[EndTime "7:26:01 PDT"]
[Termination "JanMur7 won by checkmate"]

1. e4 {[%clk 0:04:58.7]} 1... e5 {[%clk 0:04:58.1]} 2. Nf3 {[%clk 0:04:57.1]}
2... d6 {[%clk 0:04:56.7]} 3. Bc4 {[%clk 0:04:55.3]} 3... Be6 {[%clk 0:04:50.6]}
4. Bxe6 {[%clk 0:04:53.8]} 4... fxe6 {[%clk 0:04:49.6]} 5. d4 {[%clk 0:04:53.3]}
5... exd4 {[%clk 0:04:46.9]} 6. Nxd4 {[%clk 0:04:53.2]} 6... e5 {[%clk 0:04:45]}
7. Nf3 {[%clk 0:04:51]} 7... Nf6 {[%clk 0:04:43.8]} 8. Nc3 {[%clk 0:04:49.3]}
8... Be7 {[%clk 0:04:37.2]} 9. Bg5 {[%clk 0:04:46.4]} 9... O-O {[%clk
0:04:35.3]} 10. Bxf6 {[%clk 0:04:42.6]} 10... Bxf6 {[%clk 0:04:32.2]} 11. Qd5+
{[%clk 0:04:42.2]} 11... Kh8 {[%clk 0:04:29.3]} 12. Qxb7 {[%clk 0:04:42.1]}
12... Nd7 {[%clk 0:04:25.8]} 13. Nd5 {[%clk 0:04:35.1]} 13... Rb8 {[%clk
0:04:03.5]} 14. Qxc7 {[%clk 0:04:32.5]} 14... Rxb2 {[%clk 0:03:57.3]} 15. Qxd8
{[%clk 0:04:26.5]} 15... Rxd8 {[%clk 0:03:55.5]} 16. O-O {[%clk 0:04:23.8]}
16... Rxc2 {[%clk 0:03:52.9]} 17. Nxf6 {[%clk 0:04:11.1]} 17... Nxf6 {[%clk
0:03:51.3]} 18. Ng5 {[%clk 0:04:09.5]} 18... Rd7 {[%clk 0:03:42.8]} 19. Rac1
{[%clk 0:04:00.9]} 19... Rxa2 {[%clk 0:03:39.3]} 20. Rc8+ {[%clk 0:03:56.4]}
20... Ng8 {[%clk 0:03:35.6]} 21. Rd8 {[%clk 0:03:49.5]} 21... Rc7 {[%clk
0:03:10.5]} 22. Rxd6 {[%clk 0:03:41.4]} 22... h6 {[%clk 0:03:08.2]} 23. Nf3
{[%clk 0:03:36.2]} 23... Rc5 {[%clk 0:02:57.1]} 24. Re6 {[%clk 0:03:24.2]} 24...
Raa5 {[%clk 0:02:26.4]} 25. h4 {[%clk 0:03:12.4]} 25... Nf6 {[%clk 0:02:24.1]}
26. Rd1 {[%clk 0:02:59.5]} 26... Rab5 {[%clk 0:02:21.4]} 27. h5 {[%clk
0:02:40.8]} 27... Nxh5 {[%clk 0:01:59]} 28. Nh4 {[%clk 0:02:30.3]} 28... Nf6
{[%clk 0:01:49.9]} 29. Rd8+ {[%clk 0:02:15.9]} 29... Kh7 {[%clk 0:01:48]} 30.
Re7 {[%clk 0:02:07]} 30... a5 {[%clk 0:01:39.6]} 31. Nf5 {[%clk 0:01:55]} 31...
Nh5 {[%clk 0:01:23.9]} 32. g4 {[%clk 0:01:42.9]} 32... Kg6 {[%clk 0:00:57.4]}
33. gxh5+ {[%clk 0:01:37.4]} 33... Kxh5 {[%clk 0:00:55.4]} 34. Rxg7 {[%clk
0:01:27.6]} 34... a4 {[%clk 0:00:53.9]} 35. Rd3 {[%clk 0:01:19.8]} 35... Ra5
{[%clk 0:00:50.3]} 36. Rh3# {[%clk 0:01:12.4]} 1-0

[Event "Live Chess"]
[Site "Chess.com"]
[Date "2023.05.21"]
[Round "-"]
[White "wadsy27"]
[Black "YrrriKharkiv"]
[Result "1-0"]
[WhiteElo "2546"]
[BlackElo "2058"]
[TimeControl "300"]
[EndTime "7:26:03 PDT"]
[Termination "wadsy27 won by resignation"]

1. c4 {[%clk 0:04:57.8]} 1... Nf6 {[%clk 0:04:58.5]} 2. g3 {[%clk 0:04:56.9]}
2... e6 {[%clk 0:04:57.9]} 3. Bg2 {[%clk 0:04:56.1]} 3... d5 {[%clk 0:04:57.6]}
4. Nf3 {[%clk 0:04:55.6]} 4... c6 {[%clk 0:04:56.6]} 5. O-O {[%clk 0:04:54.6]}
5... Bd6 {[%clk 0:04:55.7]} 6. b3 {[%clk 0:04:53.7]} 6... a5 {[%clk 0:04:54.3]}
7. Nc3 {[%clk 0:04:50.4]} 7... Nbd7 {[%clk 0:04:48.4]} 8. d4 {[%clk 0:04:47.7]}
8... Qe7 {[%clk 0:04:42.2]} 9. Bb2 {[%clk 0:04:41.7]} 9... h5 {[%clk 0:04:36.6]}
10. h4 {[%clk 0:04:37.9]} 10... Bb4 {[%clk 0:04:31.3]} 11. a3 {[%clk 0:04:35.7]}
11... Bd6 {[%clk 0:04:27.9]} 12. Ng5 {[%clk 0:04:28.7]} 12... a4 {[%clk
0:04:10]} 13. c5 {[%clk 0:04:25.3]} 13... Bc7 {[%clk 0:04:08.3]} 14. Nxa4 {[%clk
0:04:23.3]} 14... e5 {[%clk 0:04:05.6]} 15. dxe5 {[%clk 0:04:20.5]} 15... Nxe5
{[%clk 0:04:04.6]} 16. e4 {[%clk 0:04:14.4]} 16... O-O {[%clk 0:03:53.4]} 17.
exd5 {[%clk 0:04:12]} 17... cxd5 {[%clk 0:03:51.7]} 18. Re1 {[%clk 0:04:09.7]}
18... Nfg4 {[%clk 0:03:39.6]} 19. f3 {[%clk 0:03:52]} 19... Nh6 {[%clk
0:03:02.2]} 20. f4 {[%clk 0:03:48.1]} 20... Rxa4 {[%clk 0:02:58.3]} 21. bxa4
{[%clk 0:03:45.1]} 21... Qxc5+ {[%clk 0:02:48.9]} 22. Bd4 {[%clk 0:03:44]} 1-0

[Event "Live Chess"]
[Site "Chess.com"]
[Date "2023.05.21"]
[Round "-"]
[White "PantherCal"]
[Black "Larchikov"]
[Result "1-0"]
[WhiteElo "1858"]
[BlackElo "2025"]
[TimeControl "300"]
[EndTime "7:26:07 PDT"]
[Termination "PantherCal won on time"]

1. e4 {[%clk 0:04:56.9]} 1... c5 {[%clk 0:04:58.8]} 2. d4 {[%clk 0:04:56.8]}
2... cxd4 {[%clk 0:04:57.4]} 3. Qxd4 {[%clk 0:04:56.7]} 3... Nc6 {[%clk
0:04:55.6]} 4. Qd1 {[%clk 0:04:56.6]} 4... g6 {[%clk 0:04:53.7]} 5. Nf3 {[%clk
0:04:56.1]} 5... Bg7 {[%clk 0:04:52.9]} 6. Bc4 {[%clk 0:04:55.7]} 6... e6 {[%clk
0:04:51.6]} 7. O-O {[%clk 0:04:54.7]} 7... Nge7 {[%clk 0:04:48.2]} 8. Bg5 {[%clk
0:04:53.2]} 8... O-O {[%clk 0:04:46.6]} 9. Nc3 {[%clk 0:04:51.6]} 9... a6 {[%clk
0:04:45.6]} 10. Qd2 {[%clk 0:04:48.2]} 10... b5 {[%clk 0:04:43.1]} 11. Bb3
{[%clk 0:04:47]} 11... Bb7 {[%clk 0:04:26.7]} 12. Rad1 {[%clk 0:04:45.1]} 12...
Nb8 {[%clk 0:04:12.1]} 13. Qd6 {[%clk 0:04:39]} 13... f6 {[%clk 0:04:09.7]} 14.
Bf4 {[%clk 0:04:30.8]} 14... Nec6 {[%clk 0:03:55.5]} 15. Bxe6+ {[%clk
0:04:26.4]} 15... dxe6 {[%clk 0:03:52.4]} 16. Qxe6+ {[%clk 0:04:26.3]} 16... Kh8
{[%clk 0:03:48.5]} 17. Rxd8 {[%clk 0:04:24.9]} 17... Rxd8 {[%clk 0:03:48.1]} 18.
Nd5 {[%clk 0:04:18.7]} 18... Nd7 {[%clk 0:03:45]} 19. Bc7 {[%clk 0:03:59.1]}
19... Nc5 {[%clk 0:03:39.5]} 20. Qg4 {[%clk 0:03:36.1]} 20... Rd7 {[%clk
0:03:35.5]} 21. Bb6 {[%clk 0:03:32.2]} 21... Bc8 {[%clk 0:03:19.6]} 22. Qf4
{[%clk 0:02:56.3]} 22... Ne6 {[%clk 0:03:13.4]} 23. Qe3 {[%clk 0:02:55]} 23...
Bb7 {[%clk 0:03:01.7]} 24. Nd4 {[%clk 0:02:52.1]} 24... Nexd4 {[%clk 0:02:59]}
25. Bxd4 {[%clk 0:02:52]} 25... Re8 {[%clk 0:02:46.5]} 26. Nxf6 {[%clk
0:02:01.6]} 26... Nxd4 {[%clk 0:02:26.6]} 27. Nxe8 {[%clk 0:01:50.6]} 27... Be5
{[%clk 0:02:14.2]} 28. f4 {[%clk 0:01:41.3]} 28... Bb8 {[%clk 0:02:12.5]} 29.
Rd1 {[%clk 0:01:36.3]} 29... Ba7 {[%clk 0:02:07.8]} 30. Kh1 {[%clk 0:01:26.7]}
30... Rd8 {[%clk 0:00:59]} 31. Nc7 {[%clk 0:01:16.7]} 31... Rd7 {[%clk
0:00:49.4]} 32. Nd5 {[%clk 0:00:44.7]} 32... Bxd5 {[%clk 0:00:41.8]} 33. exd5
{[%clk 0:00:44.6]} 33... Rxd5 {[%clk 0:00:41.3]} 34. Qe8+ {[%clk 0:00:42.5]}
34... Kg7 {[%clk 0:00:40.3]} 35. Qe7+ {[%clk 0:00:38.9]} 35... Kh6 {[%clk
0:00:39.6]} 36. Qxa7 {[%clk 0:00:35.3]} 36... Nc6 {[%clk 0:00:36.3]} 37. Qg1
{[%clk 0:00:30.6]} 37... Rh5 {[%clk 0:00:32.8]} 38. h3 {[%clk 0:00:29.1]} 38...
Ne7 {[%clk 0:00:31.5]} 39. Qe3 {[%clk 0:00:27.6]} 39... Nf5 {[%clk 0:00:30.7]}
40. Qf3 {[%clk 0:00:26.6]} 40... Rh4 {[%clk 0:00:27.6]} 41. Rd5 {[%clk
0:00:24.3]} 41... Ng7 {[%clk 0:00:24.4]} 42. Kh2 {[%clk 0:00:21.7]} 42... Nh5
{[%clk 0:00:19.8]} 43. g3 {[%clk 0:00:20]} 43... Rxf4 {[%clk 0:00:15.8]} 44.
gxf4 {[%clk 0:00:18.9]} 44... b4 {[%clk 0:00:15]} 45. Rxh5+ {[%clk 0:00:17.8]}
45... gxh5 {[%clk 0:00:13.8]} 46. f5 {[%clk 0:00:17]} 46... Kg7 {[%clk
0:00:12.9]} 47. Qf4 {[%clk 0:00:15.8]} 47... Kf6 {[%clk 0:00:12.8]} 48. Qg5+
{[%clk 0:00:15.7]} 48... Kxg5 {[%clk 0:00:11.9]} 49. Kg3 {[%clk 0:00:15.1]}
49... Kxf5 {[%clk 0:00:11.3]} 50. h4 {[%clk 0:00:14.5]} 50... Ke4 {[%clk
0:00:09.5]} 51. a3 {[%clk 0:00:12.7]} 51... bxa3 {[%clk 0:00:08.1]} 52. bxa3
{[%clk 0:00:12.6]} 52... a5 {[%clk 0:00:06.9]} 53. a4 {[%clk 0:00:11.1]} 53...
Kd4 {[%clk 0:00:04.3]} 54. Kf3 {[%clk 0:00:10.5]} 54... Kc3 {[%clk 0:00:04.2]}
55. Kf4 {[%clk 0:00:09.5]} 55... Kb4 {[%clk 0:00:02.8]} 56. Kg5 {[%clk
0:00:09.4]} 56... Kxa4 {[%clk 0:00:02.5]} 57. Kxh5 {[%clk 0:00:09.3]} 57... Kb4
{[%clk 0:00:02]} 58. Kh6 {[%clk 0:00:09.2]} 58... a4 {[%clk 0:00:01.6]} 59. Kxh7
{[%clk 0:00:09.1]} 59... a3 {[%clk 0:00:01.3]} 60. Kg7 {[%clk 0:00:09]} 60... a2
{[%clk 0:00:01]} 61. h5 {[%clk 0:00:08.9]} 61... a1=Q+ {[%clk 0:00:00.5]} 62.
Kg6 {[%clk 0:00:08]} 1-0

[Event "Live Chess"]
[Site "Chess.com"]
[Date "2023.05.21"]
[Round "-"]
[White "NotHarryV"]
[Black "Singapourfeuj"]
[Result "0-1"]
[WhiteElo "1515"]
[BlackElo "2199"]
[TimeControl "300"]
[EndTime "7:26:10 PDT"]
[Termination "Singapourfeuj won by resignation"]

1. d4 {[%clk 0:04:59.7]} 1... Nf6 {[%clk 0:04:57.2]} 2. c4 {[%clk 0:04:58.8]}
2... g6 {[%clk 0:04:56.4]} 3. Nf3 {[%clk 0:04:55.3]} 3... Bg7 {[%clk 0:04:55.5]}
4. Nc3 {[%clk 0:04:54.4]} 4... O-O {[%clk 0:04:54.5]} 5. e4 {[%clk 0:04:53.8]}
5... d6 {[%clk 0:04:53.4]} 6. h3 {[%clk 0:04:53.2]} 6... e5 {[%clk 0:04:52]} 7.
Be3 {[%clk 0:04:52.4]} 7... Nc6 {[%clk 0:04:46.9]} 8. d5 {[%clk 0:04:50.9]} 8...
Ne7 {[%clk 0:04:45.9]} 9. Be2 {[%clk 0:04:48.2]} 9... Nh5 {[%clk 0:04:44.6]} 10.
c5 {[%clk 0:04:33.6]} 10... Nf4 {[%clk 0:04:42.6]} 11. Bxf4 {[%clk 0:04:28.9]}
11... exf4 {[%clk 0:04:41.6]} 12. Qc1 {[%clk 0:04:06.5]} 12... f5 {[%clk
0:04:37.7]} 13. exf5 {[%clk 0:03:38.6]} 13... Nxf5 {[%clk 0:04:30.7]} 14. cxd6
{[%clk 0:03:29.7]} 14... Nxd6 {[%clk 0:04:28.1]} 15. O-O {[%clk 0:03:28.4]}
15... Bf5 {[%clk 0:04:25.6]} 16. Qd2 {[%clk 0:02:55.8]} 16... g5 {[%clk
0:04:24]} 17. Bd3 {[%clk 0:02:52.8]} 17... Bxd3 {[%clk 0:04:16.1]} 18. Qxd3
{[%clk 0:02:52.2]} 18... Qf6 {[%clk 0:04:14.2]} 19. Rae1 {[%clk 0:02:41.4]}
19... Rae8 {[%clk 0:04:09.2]} 20. Rxe8 {[%clk 0:02:24.5]} 20... Rxe8 {[%clk
0:04:08.1]} 21. Re1 {[%clk 0:01:55.4]} 21... Rxe1+ {[%clk 0:04:05.4]} 22. Nxe1
{[%clk 0:01:55.3]} 22... Qf5 {[%clk 0:04:00.8]} 23. Qxf5 {[%clk 0:01:53.3]}
23... Nxf5 {[%clk 0:03:59.5]} 24. Nf3 {[%clk 0:01:43.6]} 24... Bxc3 {[%clk
0:03:56.9]} 25. bxc3 {[%clk 0:01:42.5]} 25... h6 {[%clk 0:03:56.2]} 26. c4
{[%clk 0:01:35.2]} 26... Kf7 {[%clk 0:03:53.9]} 27. g4 {[%clk 0:01:30.7]} 27...
fxg3 {[%clk 0:03:51.1]} 28. fxg3 {[%clk 0:01:30.2]} 28... Nxg3 {[%clk
0:03:50.2]} 29. Kg2 {[%clk 0:01:27.8]} 29... Ne4 {[%clk 0:03:46.9]} 30. h4
{[%clk 0:01:06.8]} 30... Kf6 {[%clk 0:03:41.3]} 31. hxg5+ {[%clk 0:01:05.4]}
31... hxg5 {[%clk 0:03:39.1]} 32. Kh3 {[%clk 0:00:53.9]} 32... b6 {[%clk
0:03:31.7]} 33. Kg4 {[%clk 0:00:46.1]} 33... a5 {[%clk 0:03:24.9]} 34. a4 {[%clk
0:00:44]} 34... Nf2+ {[%clk 0:03:16.5]} 35. Kg3 {[%clk 0:00:41.9]} 35... Nd3
{[%clk 0:03:14.6]} 36. Kg4 {[%clk 0:00:38.6]} 36... Ne5+ {[%clk 0:03:13.6]} 37.
Nxe5 {[%clk 0:00:36.5]} 37... Kxe5 {[%clk 0:03:12.6]} 38. Kxg5 {[%clk
0:00:36.4]} 38... Kd4 {[%clk 0:03:11.8]} 0-1

[Event "Live Chess"]
[Site "Chess.com"]
[Date "2023.05.21"]
[Round "-"]
[White "diana21strabt"]
[Black "MartynColebrook"]
[Result "1-0"]
[WhiteElo "1755"]
[BlackElo "1323"]
[TimeControl "300"]
[EndTime "7:26:26 PDT"]
[Termination "diana21strabt won by resignation"]

1. e4 {[%clk 0:04:57.6]} 1... d5 {[%clk 0:04:57.9]} 2. exd5 {[%clk 0:04:56.4]}
2... Qxd5 {[%clk 0:04:55.9]} 3. Nc3 {[%clk 0:04:55.9]} 3... Qa5 {[%clk
0:04:51.5]} 4. Bc4 {[%clk 0:04:55.1]} 4... Nf6 {[%clk 0:04:47.5]} 5. d3 {[%clk
0:04:54.1]} 5... e5 {[%clk 0:04:45.4]} 6. Bd2 {[%clk 0:04:53.1]} 6... c5 {[%clk
0:04:38.1]} 7. Nf3 {[%clk 0:04:51.8]} 7... Nc6 {[%clk 0:04:35.2]} 8. Qe2 {[%clk
0:04:50.8]} 8... Bd6 {[%clk 0:04:32]} 9. O-O {[%clk 0:04:48.5]} 9... O-O {[%clk
0:04:23.4]} 10. Nd5 {[%clk 0:04:36.2]} 10... Qd8 {[%clk 0:04:15.1]} 11. Bg5
{[%clk 0:04:30.2]} 11... Nd4 {[%clk 0:03:56]} 12. Nxd4 {[%clk 0:04:27.4]} 12...
exd4 {[%clk 0:03:51.3]} 13. Bxf6 {[%clk 0:04:26.1]} 13... gxf6 {[%clk
0:03:46.5]} 14. Qf3 {[%clk 0:04:25]} 14... Be5 {[%clk 0:03:43.6]} 15. Rae1
{[%clk 0:04:22.7]} 15... Re8 {[%clk 0:03:39.1]} 16. h3 {[%clk 0:04:03.4]} 16...
a6 {[%clk 0:03:32.8]} 17. a4 {[%clk 0:03:58.9]} 17... Be6 {[%clk 0:03:22.5]} 18.
Re4 {[%clk 0:03:44.5]} 18... Qd6 {[%clk 0:03:15.3]} 19. Nxf6+ {[%clk 0:03:31.5]}
19... Bxf6 {[%clk 0:02:57.1]} 20. Qxf6 {[%clk 0:03:30.2]} 20... Rad8 {[%clk
0:02:46]} 21. Bxe6 {[%clk 0:03:20.6]} 21... Rxe6 {[%clk 0:02:25]} 22. Rxe6
{[%clk 0:03:18.7]} 22... Qxe6 {[%clk 0:02:14.7]} 23. Qxe6 {[%clk 0:03:16.8]}
23... fxe6 {[%clk 0:02:13.6]} 24. Re1 {[%clk 0:03:16.3]} 24... Kf7 {[%clk
0:02:11.6]} 25. Re5 {[%clk 0:03:14.9]} 25... Kf6 {[%clk 0:02:07.6]} 26. Rxc5
{[%clk 0:03:13.5]} 26... b6 {[%clk 0:02:03.5]} 27. Rc6 {[%clk 0:03:11.9]} 27...
h5 {[%clk 0:01:48.8]} 28. Rxb6 {[%clk 0:03:09.7]} 28... Rc8 {[%clk 0:01:47.4]}
29. Rxa6 {[%clk 0:03:04.2]} 29... Rxc2 {[%clk 0:01:45.4]} 30. Rb6 {[%clk
0:03:02.4]} 30... Rd2 {[%clk 0:01:42.4]} 31. Rb3 {[%clk 0:03:00.6]} 31... h4
{[%clk 0:01:35.5]} 32. a5 {[%clk 0:02:59.3]} 32... Ke5 {[%clk 0:01:33]} 33. a6
{[%clk 0:02:57.8]} 33... Rd1+ {[%clk 0:01:24.6]} 34. Kh2 {[%clk 0:02:56.4]}
34... Ra1 {[%clk 0:01:21.5]} 35. Ra3 {[%clk 0:02:53.3]} 35... Rc1 {[%clk
0:01:16.1]} 36. a7 {[%clk 0:02:46.9]} 1-0

[Event "Live Chess"]
[Site "Chess.com"]
[Date "2023.05.21"]
[Round "-"]
[White "LiamClery2020"]
[Black "Mugzwang"]
[Result "1-0"]
[WhiteElo "1984"]
[BlackElo "1447"]
[TimeControl "300"]
[EndTime "7:26:37 PDT"]
[Termination "LiamClery2020 won by resignation"]

1. e4 {[%clk 0:04:59.1]} 1... c5 {[%clk 0:04:57.5]} 2. Nf3 {[%clk 0:04:57.5]}
2... Nc6 {[%clk 0:04:56.2]} 3. Bb5 {[%clk 0:04:56.9]} 3... Nf6 {[%clk
0:04:54.2]} 4. Bxc6 {[%clk 0:04:47.6]} 4... dxc6 {[%clk 0:04:52.5]} 5. Nc3
{[%clk 0:04:47]} 5... g6 {[%clk 0:04:39.2]} 6. O-O {[%clk 0:04:45.9]} 6... Bg7
{[%clk 0:04:38]} 7. Re1 {[%clk 0:04:44.9]} 7... O-O {[%clk 0:04:36.6]} 8. d3
{[%clk 0:04:37.4]} 8... Bg4 {[%clk 0:04:34.2]} 9. Be3 {[%clk 0:04:34]} 9... b6
{[%clk 0:04:29.8]} 10. h3 {[%clk 0:04:32.8]} 10... Bxf3 {[%clk 0:04:21.8]} 11.
Qxf3 {[%clk 0:04:32.7]} 11... e5 {[%clk 0:04:18]} 12. Rad1 {[%clk 0:04:29.5]}
12... Qc7 {[%clk 0:04:05]} 13. Ne2 {[%clk 0:04:25.6]} 13... Rad8 {[%clk
0:04:02.8]} 14. c3 {[%clk 0:04:23.1]} 14... Rd7 {[%clk 0:03:50.7]} 15. Bg5
{[%clk 0:04:19.4]} 15... Rd6 {[%clk 0:03:39.5]} 16. d4 {[%clk 0:04:17.2]} 16...
exd4 {[%clk 0:03:33.1]} 17. e5 {[%clk 0:04:15.7]} 1-0

[Event "Live Chess"]
[Site "Chess.com"]
[Date "2023.05.21"]
[Round "-"]
[White "Leonid_Starozhilov"]
[Black "davigator"]
[Result "1-0"]
[WhiteElo "2637"]
[BlackElo "2286"]
[TimeControl "300"]
[EndTime "7:26:44 PDT"]
[Termination "Leonid_Starozhilov won by resignation"]

1. e4 {[%clk 0:04:59.1]} 1... c5 {[%clk 0:04:58.7]} 2. Nf3 {[%clk 0:04:57.9]}
2... Nc6 {[%clk 0:04:58.2]} 3. Bb5 {[%clk 0:04:57]} 3... g6 {[%clk 0:04:56.9]}
4. Bxc6 {[%clk 0:04:55.1]} 4... bxc6 {[%clk 0:04:54.3]} 5. d3 {[%clk 0:04:55]}
5... Bg7 {[%clk 0:04:53.6]} 6. O-O {[%clk 0:04:54.9]} 6... d6 {[%clk 0:04:52]}
7. h3 {[%clk 0:04:54.2]} 7... Nh6 {[%clk 0:04:50.6]} 8. Re1 {[%clk 0:04:43.2]}
8... O-O {[%clk 0:04:47.4]} 9. Nc3 {[%clk 0:04:32.5]} 9... f5 {[%clk 0:04:44.3]}
10. e5 {[%clk 0:04:30.8]} 10... Qc7 {[%clk 0:04:42.3]} 11. Bf4 {[%clk 0:04:23]}
11... Nf7 {[%clk 0:04:40.2]} 12. exd6 {[%clk 0:04:12.7]} 12... exd6 {[%clk
0:04:38.9]} 13. Qd2 {[%clk 0:04:12]} 13... h6 {[%clk 0:04:36.9]} 14. h4 {[%clk
0:04:04.4]} 14... Rb8 {[%clk 0:04:28.7]} 15. Na4 {[%clk 0:03:47.8]} 15... Rb4
{[%clk 0:03:14.3]} 16. Nxc5 {[%clk 0:03:38.3]} 16... Rxf4 {[%clk 0:03:13]} 17.
Qxf4 {[%clk 0:03:35.8]} 17... g5 {[%clk 0:03:12.2]} 18. hxg5 {[%clk 0:03:34.4]}
18... hxg5 {[%clk 0:03:11.5]} 19. Nxg5 {[%clk 0:03:24.5]} 19... Nxg5 {[%clk
0:03:10.8]} 20. Qxg5 {[%clk 0:03:23.7]} 20... Rf7 {[%clk 0:02:54.8]} 21. Re8+
{[%clk 0:02:48.2]} 21... Kh7 {[%clk 0:02:52.7]} 22. Qh5+ {[%clk 0:02:43.6]}
22... Bh6 {[%clk 0:02:51.8]} 23. Ne6 {[%clk 0:02:41.3]} 23... Qd7 {[%clk
0:02:43.5]} 24. Ng5+ {[%clk 0:02:36.7]} 24... Kg7 {[%clk 0:02:41.3]} 25. Qxf7+
{[%clk 0:02:35.9]} 25... Qxf7 {[%clk 0:02:39.5]} 26. Nxf7 {[%clk 0:02:35.3]}
26... Bd7 {[%clk 0:02:36.7]} 27. Nxh6 {[%clk 0:02:34.3]} 1-0